fUST/lending_fUST_20240303
["ID","MTS","AMOUNT","RATE_DAILY","PERIOD"]
[316324476,1709440241117,-273.306736,0.000239,2]
[316324477,1709440241127,-273.306736,0.000239,2]
[316324478,1709440241136,-273.306736,0.000239,2]
[316324479,1709440241146,-273.306736,0.000239,2]
[316324480,1709440241155,-273.306736,0.000239,2]
[316324481,1709440241164,-273.306736,0.000239,2]
[316324482,1709440241173,-273.306736,0.000239,2]
[316324483,1709440241183,-273.306736,0.000239,2]
[316324484,1709440241192,-273.306736,0.000239,2]
[316324485,1709440241201,-273.306736,0.000239,2]
[316324486,1709440241210,-273.306736,0.000239,2]
[316324487,1709440241219,-273.306735,0.000239,2]
[316324488,1709440241228,-958.65242304,0.000239,2]
[316324489,1709440241237,-1506.12596651,0.000239,2]
[316324490,1709440241247,-1640.33069204,0.00023998,2]
[316324491,1709440241256,-430.00272221,0.00023998,2]
[316324492,1709440241265,-1885.79456944,0.00023998,2]
[316324493,1709440241274,-625.83621934,0.00023998,2]
[316324494,1709440241283,-1478.85481006,0.00023998,2]
[316324495,1709440241292,-6936.2615389,0.00023998,2]
[316324496,1709440241302,-155.18117611,0.00023998,2]
[316324497,1709440241310,-155.3644468,0.00023998,2]
[316324498,1709440241319,-155.16655487,0.00023998,2]
[316324499,1709440241328,-667.80687532,0.00023998,2]
[316324500,1709440241337,-239.36158123,0.00023998,2]
[316324501,1709440241347,-876.76,0.00023998,2]
[316324502,1709440241356,-500.0,0.00023998,2]
[316324503,1709440241365,-2312.43,0.00023998,2]
[316324504,1709440241374,-218.48,0.00023998,2]
[316324505,1709440241384,-218.48,0.00023998,2]
[316324506,1709440241393,-218.48,0.00023998,2]
[316324507,1709440241402,-218.48,0.00023998,2]
[316324508,1709440241411,-218.48,0.00023998,2]
[316324509,1709440241424,-218.48,0.00023998,2]
[316324510,1709440241433,-243.33781778,0.00023999,2]
[316324511,1709440241442,-438.21212309,0.00023999,2]
[316324512,1709440241453,-204.32664377,0.00023999,2]
[316324513,1709440241462,-188.50124916,0.00023999,2]
[316324514,1709440241472,-500.0,0.00023999,2]
[316324515,1709440241481,-200.49264025,0.00023999,2]
[316324516,1709440241490,-221.39922029,0.00023999,2]
[316324517,1709440241500,-500.0,0.00023999,2]
[316324518,1709440241510,-284.14585118,0.00023999,2]
[316324519,1709440241520,-500.0,0.00023999,2]
[316324520,1709440241530,-415.66988612,0.00023999,2]
[316324521,1709440241539,-500.0,0.00023999,2]
[316324522,1709440241548,-475.21525159,0.00023999,2]
[316324523,1709440241557,-515.61175815,0.00023999,2]
[316324524,1709440241567,-500.0,0.00023999,2]
[316324525,1709440241576,-500.0,0.00023999,2]
[316324526,1709440241657,-500.0,0.00023999,2]
[316324527,1709440241666,-500.0,0.00023999,2]
[316324528,1709440241676,-500.0,0.00023999,2]
[316324529,1709440241685,-500.0,0.00023999,2]
[316324530,1709440241694,-500.0,0.00023999,2]
[316324531,1709440241703,-284.56059898,0.00023999,2]
[316324532,1709440241712,-500.0,0.00023999,2]
[316324533,1709440241721,-500.0,0.00023999,2]
[316324534,1709440241730,-500.0,0.00023999,2]
[316324535,1709440241739,-500.0,0.00023999,2]
[316324536,1709440241748,-500.0,0.00023999,2]
[316324537,1709440241757,-500.0,0.00023999,2]
[316324538,1709440241765,-500.0,0.00023999,2]
[316324539,1709440241775,-260.82435057,0.00023999,2]
[316324540,1709440241783,-876.76,0.00023999,2]
[316324541,1709440241792,-876.76,0.00023999,2]
[316324542,1709440241802,-876.76,0.00023999,2]
[316324543,1709440241811,-876.76,0.00023999,2]
[316324544,1709440241820,-707.25,0.00023999,2]
[316324545,1709440241829,-707.25,0.00023999,2]
[316324546,1709440241838,-707.25,0.00023999,2]
[316324547,1709440241848,-707.25,0.00023999,2]
[316324548,1709440241857,-707.25,0.00023999,2]
[316324549,1709440241866,-707.25,0.00023999,2]
[316324550,1709440241875,-707.25,0.00023999,2]
[316324551,1709440241885,-707.25,0.00023999,2]
[316324552,1709440241894,-707.25,0.00023999,2]
[316324553,1709440241903,-707.25,0.00023999,2]
[316324554,1709440241913,-707.25,0.00023999,2]
[316324555,1709440241922,-707.25,0.00023999,2]
[316324556,1709440241931,-707.25,0.00023999,2]
[316324557,1709440241940,-876.76,0.00023999,2]
[316324558,1709440241949,-707.42409501,0.00023999,2]
[316324559,1709440241958,-876.76,0.00023999,2]
[316324560,1709440241967,-876.76,0.00023999,2]
[316324561,1709440241977,-628.33749718,0.00023999,2]
[316324562,1709440241986,-876.76,0.00023999,2]
[316324563,1709440241994,-876.76,0.00023999,2]
[316324564,1709440242003,-876.76,0.00023999,2]
[316324565,1709440242013,-876.76,0.00023999,2]
[316324566,1709440242023,-876.76,0.00023999,2]
[316324567,1709440242032,-876.76,0.00023999,2]
[316324568,1709440242041,-876.97,0.00023999,2]
[316324569,1709440242051,-500.0,0.00023999,2]
[316324570,1709440242060,-500.0,0.00023999,2]
[316324571,1709440242069,-500.0,0.00023999,2]
[316324572,1709440242078,-603.33379375,0.00023999,2]
[316324573,1709440242087,-400.9,0.00023999,2]
[316324574,1709440242097,-682.23,0.00023999,2]
[316324575,1709440242106,-682.23,0.00023999,2]
[316324576,1709440242116,-682.23,0.00023999,2]
[316324577,1709440242124,-682.23,0.00023999,2]
[316324578,1709440242134,-682.23,0.00023999,2]
[316324579,1709440242143,-682.23,0.00023999,2]
[316324580,1709440242152,-682.23,0.00023999,2]
[316324581,1709440242161,-682.23,0.00023999,2]
[316324582,1709440242171,-682.23,0.00023999,2]
[316324583,1709440242180,-682.23,0.00023999,2]
[316324584,1709440242189,-682.23,0.00023999,2]
[316324585,1709440242198,-682.23,0.00023999,2]
[316324586,1709440242207,-682.23,0.00023999,2]
[316324587,1709440242217,-682.23,0.00023999,2]
[316324588,1709440242226,-500.0,0.00023999,2]
[316324589,1709440242235,-500.0,0.00023999,2]
[316324590,1709440242245,-500.0,0.00023999,2]
[316324591,1709440242254,-500.0,0.00023999,2]
[316324592,1709440242263,-283.79,0.00023999,2]
[316324593,1709440242272,-2312.43,0.00023999,2]
[316324594,1709440242282,-2312.43,0.00023999,2]
[316324595,1709440242292,-2312.43,0.00023999,2]
[316324596,1709440242302,-2312.43,0.00023999,2]
[316324597,1709440242316,-2312.43,0.00023999,2]
[316324598,1709440242333,-2312.43,0.00023999,2]
[316324599,1709440242348,-2312.43,0.00023999,2]
[316324600,1709440242360,-2312.43,0.00023999,2]
[316324601,1709440242370,-2312.43,0.00023999,2]
[316324602,1709440242380,-2312.43,0.00023999,2]
[316324603,1709440242389,-2312.43,0.00023999,2]
[316324604,1709440242398,-2312.43,0.00023999,2]
[316324606,1709440242407,-2312.43,0.00023999,2]
[316324608,1709440242417,-2312.62587869,0.00023999,2]
[316324610,1709440242427,-198.78578057,0.00023999,2]
[316324612,1709440242437,-110972.17574231,0.00024,5]
[316324618,1709440242530,-500.0,0.00023799,2]
[316324619,1709440242539,-200.86426022,0.00023799,2]
[316324621,1709440242549,-500.0,0.00023899,2]
[316324623,1709440242559,-151.0,0.00023999,2]
[316324624,1709440242568,-151.0,0.00023999,2]
[316324625,1709440242577,-151.0,0.00023999,2]
[316324626,1709440242586,-1267.55987517,0.00024,5]
[316324641,1709440242995,-500.0,0.00023799,2]
[316324642,1709440243005,-502.87295089,0.00023799,2]
[316324643,1709440243014,-157.93830258,0.00023799,2]
[316324644,1709440243024,-500.0,0.00023899,2]
[316324645,1709440243033,-500.0,0.00023899,2]
[316324646,1709440243043,-500.0,0.00023899,2]
[316324647,1709440243052,-444.49415098,0.00023899,2]
[316324648,1709440243064,-59.81510672,0.00023899,2]
[316324649,1709440243073,-500.0,0.00023899,2]
[316324650,1709440243083,-648.59342322,0.00023899,2]
[316324651,1709440243092,-151.0,0.00023999,2]
[316324652,1709440243103,-151.0,0.00023999,2]
[316324653,1709440243112,-16339.28377006,0.00024,5]
[316324742,1709441432077,-172.242309,0.00021542,2]
[316324743,1709441432087,-1218.91173492,0.00021853,2]
[316324744,1709441432097,-9984.48623048,0.00021854,2]
[316324745,1709441432107,-1604.8167343,0.00021855,2]
[316324746,1709441432116,-787.53433243,0.000219,2]
[316324747,1709441432127,-111390.91864559,0.00022082,2]
[316324748,1709441432136,-11985.27719085,0.00022083,2]
[316324749,1709441432148,-552.81959013,0.00022083,2]
[316324750,1709441432161,-3584.99853932,0.00022083,2]
[316324751,1709441432170,-172.242309,0.00022521,2]
[316324752,1709441432180,-444.09603349,0.00022872,5]
[316324753,1709441432189,-172.242309,0.000235,2]
[316324754,1709441432198,-500.0,0.00023797,2]
[316324755,1709441432208,-500.0,0.00023797,2]
[316324756,1709441432218,-500.0,0.00023797,2]
[316324757,1709441432227,-504.63502788,0.00023797,2]
[316324758,1709441432237,-500.0,0.00023797,2]
[316324759,1709441432246,-500.0,0.00023797,2]
[316324760,1709441432256,-500.0,0.00023797,2]
[316324761,1709441432265,-500.0,0.00023797,2]
[316324762,1709441432275,-500.0,0.00023797,2]
[316324763,1709441432284,-500.0,0.00023797,2]
[316324764,1709441432293,-500.0,0.00023797,2]
[316324765,1709441432302,-500.0,0.00023797,2]
[316324766,1709441432311,-501.57558473,0.00023797,2]
[316324767,1709441432321,-496.54222518,0.00023797,2]
[316324768,1709441432330,-500.0,0.00023797,2]
[316324769,1709441432339,-500.0,0.00023797,2]
[316324770,1709441432349,-500.0,0.00023797,2]
[316324771,1709441432359,-501.44916188,0.00023797,2]
[316324772,1709441432368,-500.60548124,0.00023797,2]
[316324773,1709441432378,-500.0,0.00023797,2]
[316324774,1709441432387,-500.0,0.00023797,2]
[316324775,1709441432397,-500.0,0.00023797,2]
[316324776,1709441432407,-500.0,0.00023797,2]
[316324777,1709441432417,-500.97917017,0.00023797,2]
[316324778,1709441432426,-500.0,0.00023797,2]
[316324779,1709441432436,-500.0,0.00023797,2]
[316324780,1709441432445,-500.0,0.00023797,2]
[316324781,1709441432454,-500.0,0.00023797,2]
[316324782,1709441432464,-500.0,0.00023797,2]
[316324783,1709441432473,-500.0,0.00023797,2]
[316324784,1709441432483,-500.0,0.00023797,2]
[316324785,1709441432492,-500.0,0.00023797,2]
[316324786,1709441432501,-506.76519531,0.00023797,2]
[316324787,1709441432511,-500.0,0.00023797,2]
[316324788,1709441432520,-500.0,0.00023797,2]
[316324789,1709441432530,-500.0,0.00023797,2]
[316324790,1709441432539,-502.39663179,0.00023797,2]
[316324791,1709441432549,-501.18060884,0.00023797,2]
[316324792,1709441432558,-502.22028516,0.00023797,2]
[316324793,1709441432567,-500.0,0.00023797,2]
[316324794,1709441432576,-221.37,0.00023797,2]
[316324795,1709441432586,-500.0,0.00023799,2]
[316324796,1709441432595,-415.44055098,0.00023799,2]
[316324797,1709441432604,-500.0,0.00023799,2]
[316324798,1709441432614,-500.0,0.00023799,2]
[316324799,1709441432623,-500.45925998,0.00023799,2]
[316324800,1709441432632,-500.0,0.00023799,2]
[316324801,1709441432641,-500.0,0.00023799,2]
[316324802,1709441432651,-342.84494452,0.00023799,2]
[316324803,1709441432662,-500.0,0.00023799,2]
[316324804,1709441432671,-153.05313751,0.00023799,2]
[316324805,1709441432680,-256.4961258,0.00023799,2]
[316324806,1709441432689,-501.19325545,0.00023799,2]
[316324807,1709441432698,-500.0,0.00023799,2]
[316324808,1709441432708,-481.76820224,0.00023799,2]
[316324809,1709441432717,-523.4325765,0.00023799,2]
[316324810,1709441432726,-500.0,0.00023799,2]
[316324811,1709441432735,-501.38027476,0.00023799,2]
[316324812,1709441432745,-500.0,0.00023799,2]
[316324813,1709441432754,-501.64879183,0.00023799,2]
[316324814,1709441432764,-500.0,0.00023799,2]
[316324815,1709441432774,-500.0,0.00023799,2]
[316324816,1709441432786,-500.0,0.00023799,2]
[316324817,1709441432796,-500.0,0.00023799,2]
[316324818,1709441432805,-500.0,0.00023799,2]
[316324819,1709441432815,-500.0,0.00023799,2]
[316324820,1709441432826,-500.0,0.00023799,2]
[316324821,1709441432836,-501.38746028,0.00023799,2]
[316324822,1709441432845,-500.710173,0.00023799,2]
[316324823,1709441432855,-500.0,0.00023799,2]
[316324824,1709441432865,-501.22064483,0.00023799,2]
[316324825,1709441432874,-502.96257843,0.00023799,2]
[316324826,1709441432883,-500.60119006,0.00023799,2]
[316324827,1709441432893,-500.0,0.00023799,2]
[316324828,1709441432902,-500.0,0.00023799,2]
[316324829,1709441432912,-502.01642943,0.00023799,2]
[316324830,1709441432921,-500.0,0.00023799,2]
[316324831,1709441432931,-500.0,0.00023799,2]
[316324832,1709441432941,-500.0,0.00023799,2]
[316324833,1709441432950,-617.15676975,0.00023799,2]
[316324834,1709441432960,-500.0,0.00023799,2]
[316324835,1709441432969,-500.0,0.00023799,2]
[316324836,1709441432978,-500.0,0.00023799,2]
[316324837,1709441432988,-500.0,0.00023799,2]
[316324838,1709441432997,-500.0,0.00023799,2]
[316324839,1709441433006,-500.0,0.00023799,2]
[316324840,1709441433015,-200.20238129,0.00023799,2]
[316324841,1709441433024,-503.79884236,0.00023799,2]
[316324842,1709441433033,-500.0,0.00023799,2]
[316324843,1709441433043,-500.0,0.00023799,2]
[316324844,1709441433052,-501.38746409,0.00023799,2]
[316324845,1709441433061,-500.0,0.00023799,2]
[316324846,1709441433071,-500.0,0.00023799,2]
[316324847,1709441433080,-500.0,0.00023799,2]
[316324848,1709441433089,-500.63080225,0.00023799,2]
[316324849,1709441433098,-500.0,0.00023799,2]
[316324850,1709441433107,-479.38443512,0.00023799,2]
[316324851,1709441433117,-500.0,0.00023799,2]
[316324852,1709441433126,-499.50090581,0.00023799,2]
[316324853,1709441433135,-500.0,0.00023799,2]
[316324854,1709441433146,-500.0,0.00023799,2]
[316324855,1709441433156,-500.0,0.00023799,2]
[316324856,1709441433168,-500.0,0.00023799,2]
[316324857,1709441433178,-500.82128004,0.00023799,2]
[316324858,1709441433187,-500.0,0.00023799,2]
[316324859,1709441433197,-500.0,0.00023799,2]
[316324860,1709441433208,-500.0,0.00023799,2]
[316324861,1709441433218,-500.0,0.00023799,2]
[316324862,1709441433228,-166.83241099,0.00023799,2]
[316324863,1709441433237,-501.02254031,0.00023799,2]
[316324864,1709441433246,-500.60249797,0.00023799,2]
[316324865,1709441433255,-500.0,0.00023799,2]
[316324866,1709441433265,-500.0,0.00023799,2]
[316324867,1709441433274,-500.0,0.00023799,2]
[316324868,1709441433283,-500.0,0.00023799,2]
[316324869,1709441433293,-500.0,0.00023799,2]
[316324870,1709441433302,-350.78101823,0.00023799,2]
[316324871,1709441433311,-500.0,0.00023799,2]
[316324873,1709441433321,-500.0,0.00023799,2]
[316324874,1709441433330,-501.33274504,0.00023799,2]
[316324875,1709441433339,-500.0,0.00023799,2]
[316324877,1709441433348,-501.1861057,0.00023799,2]
[316324879,1709441433357,-500.59759999,0.00023799,2]
[316324881,1709441433367,-500.0,0.00023799,2]
[316324883,1709441433376,-501.86518142,0.00023799,2]
[316324885,1709441433386,-500.9200078,0.00023799,2]
[316324887,1709441433395,-502.11545745,0.00023799,2]
[316324889,1709441433404,-500.36956817,0.00023799,2]
[316324891,1709441433413,-500.0,0.00023799,2]
[316324893,1709441433422,-501.69502044,0.00023799,2]
[316324895,1709441433432,-493.0,0.00023799,2]
[316324897,1709441433442,-501.50055298,0.00023799,2]
[316324910,1709441433563,-500.0,0.00023898,2]
[316324912,1709441433573,-500.0,0.00023898,2]
[316324914,1709441433584,-500.0,0.00023898,2]
[316324916,1709441433594,-523.86,0.00023898,2]
[316324918,1709441433603,-500.0,0.00023898,2]
[316324920,1709441433613,-500.0,0.00023898,2]
[316324922,1709441433622,-501.09746205,0.00023898,2]
[316324924,1709441433632,-500.0,0.00023898,2]
[316324926,1709441433642,-500.0,0.00023898,2]
[316324928,1709441433651,-500.0,0.00023898,2]
[316324930,1709441433663,-500.0,0.00023898,2]
[316324932,1709441433672,-500.0,0.00023898,2]
[316324934,1709441433682,-500.0,0.00023898,2]
[316324937,1709441433698,-500.0,0.00023898,2]
[316324939,1709441433707,-93.13354927,0.00023898,2]
[316324941,1709441433722,-406.86645073,0.00023898,2]
[316324943,1709441433732,-177.91354927,0.00023898,2]
[316325257,1709441441050,-322.08645073,0.00023898,2]
[316325258,1709441441059,-500.0,0.00023898,2]
[316325259,1709441441068,-500.0,0.00023898,2]
[316325260,1709441441077,-500.93750939,0.00023898,2]
[316325261,1709441441086,-500.0,0.00023898,2]
[316325262,1709441441095,-500.0,0.00023898,2]
[316325263,1709441441104,-209.06204174,0.00023898,2]
[316325280,1709441443347,-290.93795826,0.00023898,2]
[316325281,1709441443357,-500.0,0.00023898,2]
[316325282,1709441443366,-500.0,0.00023898,2]
[316325283,1709441443375,-500.0,0.00023898,2]
[316325284,1709441443384,-502.04935941,0.00023898,2]
[316325285,1709441443394,-500.0,0.00023898,2]
[316325286,1709441443403,-500.0,0.00023898,2]
[316325288,1709441443412,-500.0,0.00023898,2]
[316325290,1709441443422,-500.0,0.00023899,2]
[316325292,1709441443430,-498.02445076,0.00023899,2]
[316325294,1709441443439,-501.33361739,0.00023899,2]
[316325297,1709441443449,-500.0,0.00023899,2]
[316325300,1709441443458,-531.42736063,0.00023899,2]
[316325303,1709441443467,-500.0,0.00023899,2]
[316325304,1709441443476,-497.89141375,0.00023899,2]
[316325306,1709441443485,-500.0,0.00023899,2]
[316325308,1709441443494,-500.0,0.00023899,2]
[316325310,1709441443504,-500.0,0.00023899,2]
[316325312,1709441443513,-500.0,0.00023899,2]
[316325314,1709441443522,-500.0,0.00023899,2]
[316325316,1709441443531,-500.0,0.00023899,2]
[316325318,1709441443540,-602.10840966,0.00023899,2]
[316325320,1709441443549,-500.0,0.00023899,2]
[316325322,1709441443558,-500.0,0.00023899,2]
[316325324,1709441443567,-500.0,0.00023899,2]
[316325325,1709441443576,-502.82593607,0.00023899,2]
[316325326,1709441443585,-502.86788127,0.00023899,2]
[316325327,1709441443594,-501.01240086,0.00023899,2]
[316325328,1709441443603,-500.0,0.00023899,2]
[316325329,1709441443613,-500.0,0.00023899,2]
[316325330,1709441443622,-501.64376895,0.00023899,2]
[316325331,1709441443631,-500.0,0.00023899,2]
[316325332,1709441443640,-500.0,0.00023899,2]
[316325333,1709441443649,-500.87770693,0.00023899,2]
[316325334,1709441443657,-500.0,0.00023899,2]
[316325335,1709441443667,-503.33439303,0.00023899,2]
[316325336,1709441443677,-623.90461055,0.00023899,2]
[316325337,1709441443686,-500.58038892,0.00023899,2]
[316325338,1709441443694,-500.0,0.00023899,2]
[316325339,1709441443704,-500.0,0.00023899,2]
[316325340,1709441443713,-502.58498573,0.00023899,2]
[316325341,1709441443722,-500.0,0.00023899,2]
[316325342,1709441443731,-500.0,0.00023899,2]
[316325343,1709441443739,-455.02170274,0.00023899,2]
[316325344,1709441443749,-428.48639779,0.00023899,2]
[316325345,1709441443758,-500.0,0.00023899,2]
[316325346,1709441443767,-500.0,0.00023899,2]
[316325347,1709441443776,-501.11367411,0.00023899,2]
[316325348,1709441443789,-500.49089249,0.00023899,2]
[316325349,1709441443799,-154.64924509,0.00023899,2]
[316325350,1709441443808,-501.0414343,0.00023899,2]
[316325351,1709441443817,-500.0,0.00023899,2]
[316325352,1709441443827,-500.0,0.00023899,2]
[316325353,1709441443836,-500.0,0.00023899,2]
[316325354,1709441443844,-500.0,0.00023899,2]
[316325355,1709441443854,-273.24,0.00023899,2]
[316325356,1709441443863,-226.46,0.00023899,2]
[316325357,1709441443873,-2000.0,0.0002399,2]
[316325358,1709441443883,-280.1351659,0.00023998,2]
[316325359,1709441443892,-500.0,0.00023998,2]
[316325360,1709441443901,-500.0,0.00023998,2]
[316325361,1709441443910,-500.0,0.00023998,2]
[316325362,1709441443919,-500.0,0.00023998,2]
[316325363,1709441443928,-188.50124915,0.00023999,2]
[316325364,1709441443937,-500.0,0.00023999,2]
[316325365,1709441443946,-507.460159,0.00023999,2]
[316325366,1709441443955,-557.44561971,0.00023999,2]
[316325367,1709441443964,-500.0,0.00023999,2]
[316325368,1709441443974,-500.0,0.00023999,2]
[316325369,1709441443983,-500.0,0.00023999,2]
[316325370,1709441443991,-500.0,0.00023999,2]
[316325371,1709441444001,-500.0,0.00023999,2]
[316325372,1709441444010,-500.0,0.00023999,2]
[316325373,1709441444019,-500.0,0.00023999,2]
[316325374,1709441444027,-500.0,0.00023999,2]
[316325375,1709441444037,-500.0,0.00023999,2]
[316325376,1709441444046,-378.04,0.00023999,2]
[316325377,1709441444055,-434.3561785,0.00023999,2]
[316325378,1709441444065,-500.0,0.00023999,2]
[316325379,1709441444075,-500.0,0.00023999,2]
[316325380,1709441444083,-500.0,0.00023999,2]
[316325381,1709441444092,-500.0,0.00023999,2]
[316325382,1709441444102,-500.0,0.00023999,2]
[316325383,1709441444111,-500.0,0.00023999,2]
[316325384,1709441444120,-500.0,0.00023999,2]
[316325385,1709441444129,-500.0,0.00023999,2]
[316325386,1709441444138,-500.0,0.00023999,2]
[316325387,1709441444147,-500.0,0.00023999,2]
[316325388,1709441444156,-500.0,0.00023999,2]
[316325389,1709441444166,-500.0,0.00023999,2]
[316325390,1709441444175,-500.0,0.00023999,2]
[316325391,1709441444184,-515.8197086,0.00023999,2]
[316325392,1709441444193,-121644.33393044,0.00024,5]
[316325393,1709441444205,-3532.62261407,0.00024,5]
[316325408,1709441446202,-1218.91173492,0.00023998,2]
[316325410,1709441446212,-1604.8167343,0.00023998,2]
[316325412,1709441446221,-10213.0806068,0.00024,5]
[316325414,1709441446232,-342.36884967,0.00024,5]
[316325427,1709441648140,7288.769883,0.00018179,2]
[316325439,1709442367116,618.96421629,0.000189,2]
[316325528,1709442638314,-1218.91173492,0.00019636,2]
[316325529,1709442638323,-1604.8167343,0.00019636,2]
[316325530,1709442638333,-9984.48623048,0.00019637,2]
[316325531,1709442638343,-2278.86189929,0.000205,5]
[316325532,1709442638352,-168.881964,0.00021649,2]
[316325533,1709442638362,-163.371782,0.00021771,2]
[316325534,1709442638371,-264.7865534,0.00021868,2]
[316325535,1709442638381,-500.0,0.00022081,2]
[316325536,1709442638392,-500.0,0.00022081,2]
[316325537,1709442638401,-500.0,0.00022081,2]
[316325538,1709442638410,-252.21820761,0.00022081,2]
[316325539,1709442638423,-247.78179239,0.00022081,2]
[316325540,1709442638432,-185.07468098,0.00022081,2]
[316325541,1709442638443,-314.92531902,0.00022081,2]
[316325542,1709442638452,-500.0,0.00022081,2]
[316325543,1709442638461,-178.02703903,0.0002252,2]
[316325544,1709442638470,-168.881964,0.00023124,2]
[316325545,1709442638480,-620.00332679,0.00023577,2]
[316325546,1709442638490,-220.0,0.00023797,2]
[316325547,1709442638501,-125.14901435,0.00023797,2]
[316328663,1709443248633,4314.73,0.0003,120]
[316329568,1709443832569,-1145.95526131,0.00019946,2]
[316330340,1709443846524,-1604.8167343,0.00019945,2]
[316330342,1709443846533,-150.90803172,0.00019946,2]
[316335740,1709444174786,412.64281086,0.000189,2]
[316335782,1709444476024,275.09520724,0.000189,2]
[316335820,1709444777252,183.39680483,0.000189,2]
[316335854,1709445032753,-1218.91173492,0.00019907,2]
[316335855,1709445032763,-5248.19034951,0.00019907,2]
[316335902,1709445038633,-1503.85816275,0.00019906,2]
[316336189,1709445041570,-100.95857155,0.00019906,2]
[316336191,1709445041580,-4736.29588097,0.00019907,2]
[316336193,1709445041589,-151.75539254,0.0002,2]
[316336195,1709445041598,-168.041877,0.00020645,2]
[316336197,1709445041607,-4191.8383022,0.00021118,2]
[316336199,1709445041616,-168.52230769,0.00022872,5]
[316336201,1709445041625,-1557.36509631,0.00022872,5]
[316336203,1709445041634,-203.92164803,0.00022872,5]
[316336205,1709445041643,-161.14602241,0.00022896,2]
[316336207,1709445041652,-1263.7539013,0.00022995,2]
[316336950,1709445048865,-1932.42451442,0.00022995,2]
[316343452,1709446240726,-168.041877,0.00019178,2]
[316343453,1709446240736,-285.79635787,0.00019651,2]
[316343471,1709446242884,-1319.02037643,0.00019651,2]
[316343472,1709446242894,-9984.48623048,0.00019652,2]
[316343473,1709446242903,-300.0,0.00019653,2]
[316343474,1709446242913,-2995.58908456,0.0001968,10]
[316349487,1709446792425,-161.1460224,0.00019525,2]
[316349488,1709446792460,-1604.8167343,0.00019614,2]
[316349489,1709446792498,-1218.91173492,0.00019615,2]
[316349490,1709446792537,-7015.12550838,0.00019624,2]
[316349494,1709446824516,-9984.48623048,0.00019613,2]
[316349495,1709446824565,-15.51376952,0.00019624,2]
[316349502,1709446876931,-10000.0,0.00019624,2]
[316349504,1709446886216,280.8758611,0.000189,2]
[316349506,1709446942476,-161.1460224,0.00019525,2]
[316349507,1709446942512,-19838.8539776,0.00019624,2]
[316349567,1709447187670,187.25057406,0.000189,2]
[316349574,1709447252706,-883.81760526,0.00019606,2]
[316349575,1709447252736,-1604.8167343,0.00019607,2]
[316349576,1709447252766,-1218.91173492,0.00019607,2]
[316349577,1709447252794,-744.94284367,0.00019608,2]
[316349578,1709447252823,-324.83461874,0.00019609,2]
[316349579,1709447252852,-9984.48623048,0.0001961,2]
[316349580,1709447252880,-1489.776102,0.0002,2]
[316349581,1709447252907,-2549.2626111,0.0002,2]
[316349582,1709447298093,218.92941117,0.000199,2]
[316349633,1709447432245,-39982.65372145,0.00020071,2]
[316349660,1709447438063,-8400.0,0.00020071,2]
[316349662,1709447438075,-7243.92986667,0.00020071,2]
[316349683,1709447440983,-1783.46222539,0.00020071,2]
[316349725,1709447443080,-1719.06548401,0.00020071,2]
[316349728,1709447446310,-474.17740683,0.00020071,2]
[316349741,1709447488881,193.75199406,0.000189,2]
[316351558,1709447911936,786.4701143,0.00019882,2]
[316351607,1709448399224,24900.0,0.00018449,2]
[316351610,1709448466245,264.78655,0.0001855,2]
[316351611,1709448522203,44311.13505255,0.00019,2]
[316351613,1709448632350,-883.81760526,0.00019342,2]